[Event "Mitropa Cup Women 2024"]
[Site "Apolda"]
[Date "2024.02.20"]
[Round "6.18"]
[White "Schneider, Jana"]
[Black "Schippke, Manon"]
[Result "1-0"]
[ECO "B42"]
[WhiteElo "2331"]
[BlackElo "2162"]
[Annotator "TA"]
[PlyCount "67"]
[EventDate "2024.02.15"]
[EventType "team-tourn"]
[EventCountry "GER"]
[SourceTitle "playchess.com"]
[Source "ChessBase"]
[SourceQuality "1"]
[WhiteTeam "Germany"]
[BlackTeam "France"]
[WhiteTeamCountry "GER"]
[BlackTeamCountry "FRA"]
[TimeControl "40/5400+30:1800+30"]

{[%evp 14,67,56,42,47,47,80,56,89,88,93,81,93,88,88,70,89,6,97,12,0,0,0,0,0,7,39,42,49,25,53,48,48,27,221,233,220,231,241,244,238,245,383,394,429,287,337,283,311,291,312,168,164,179,343,310]} 1. e4 {[%emt 0:00:01]} c5 {[%emt 0:00:06]} 2. Nf3 {[%emt 0:00:08]} e6 {[%emt 0:00:13]} 3. d4 {[%emt 0:00:08]} cxd4 {[%emt 0:00:17]} 4. Nxd4 {[%emt 0:00:08]} a6 {[%emt 0:00:17]} 5. Bd3 {[%emt 0:01:14]} Bc5 {[%emt 0:00:30]} 6. Nb3 {[%emt 0:00:41]} Ba7 {[%emt 0:00:15]} 7. O-O {[%emt 0:00:40]} Nc6 {[%emt 0:00:40][%cal Bb8c6,Bc6e5,Be5d3][%mdl 32]} 8. Qg4 {[%emt 0:01:12]} Qf6 {[%emt 0:06:15]} 9. Qg3 {[%emt 0:05:03]} h6 {[%emt 0:03:51] Against Bg5} 10. Nc3 {[%emt 0:02:05][%cal Oe4e5] [#] e5! would now be deadly.} Ne5 {[%emt 0:14:32] White is slightly better.} 11. Be3 {[%emt 0:06:05]} Bxe3 {[%emt 0:05:12]} 12. Qxe3 {[%emt 0:00:33]} (12. fxe3 $6 Qg5 $11) 12... Nxd3 {[%emt 0:09:08]} 13. Qxd3 {[%emt 0:00:38]} Ne7 {[%emt 0:00:20]} 14. Qd6 {[%emt 0:02:08]} Nc6 {[%emt 0:06:34]} 15. Na4 {[%emt 0:07:42]} (15. Rad1 $16) 15... Qe7 {[%emt 0:06:56]} (15... b5 $1 $11 {remains equal.} 16. Nc3 (16. Nb6 Rb8 $11) 16... Qe5) 16. Rfd1 {[%emt 0:02:17] White is much more active.} (16. Qg3 $16 {[%cal Oa4b6] Hoping for Nb6!} O-O 17. Nb6) 16... b5 $11 {[%emt 0:08:48]} 17. Nac5 {[%emt 0:02:04]} Qxd6 {[%emt 0:01:45]} 18. Rxd6 {[%emt 0:00:04]} g5 {[%emt 0:01:37]} 19. Rad1 {[%emt 0:02:25]} Ne5 {[%emt 0:01:13]} 20. Na5 $1 {[%emt 0:01:03]} Ke7 {[%emt 0:02:59]} 21. b4 {[%emt 0:02:36]} (21. Rb6 {simplifies} Ra7 22. Nd3 Nxd3 23. Rxd3 Rc7 24. c3) 21... f6 {[%emt 0:02:05]} 22. a4 $36 {[%emt 0:05:56][%mdl 2048] Black is under pressure.} Rb8 {[%emt 0:04:04]} 23. c3 {[%emt 0:01:52]} (23. Nxa6 $2 Bxa6 24. Rxa6 bxa4 $19) 23... Nf7 $2 {[%emt 0:02:55] [#] This costs Black the game.} (23... g4 $11 {and Black is okay.}) 24. Rxe6+ $3 $18 {[%emt 0:02:09][%mdl 512]} dxe6 {[%emt 0:00:05]} 25. Nc6+ {[%emt 0:00:07]} Kf8 {[%emt 0:00:03]} 26. Nxb8 {[%emt 0:00:10] A dynamic duo of knights.} bxa4 {[%emt 0:00:13]} 27. Nxa4 {[%emt 0:00:41]} Rh7 {[%emt 0:03:33]} (27... h5 $142 28. h3 f5) 28. Nc5 {[%emt 0:00:18]} Ke8 {[%emt 0:00:04]} 29. Nbxa6 {[%emt 0:00:38]} ({Don't do} 29. Ncxa6 Ne5 30. h3 Rh8 $18) 29... Ne5 {[%emt 0:00:09]} 30. Rd6 {[%emt 0:02:53]} Ke7 {[%emt 0:00:46]} 31. Rb6 {[%emt 0:00:42]} Rh8 {[%emt 0:00:46]} 32. Rb8 {[%emt 0:03:39]} (32. b5 $142) 32... Rd8 {[%emt 0:01:01][%cal Rd8d1]} 33. Kf1 {[%emt 0:00:46]} Nc6 $2 {[%emt 0:01:35]} (33... Bxa6+ 34. Nxa6 Rd3) 34. Ra8 {[%emt 0:01:56] Weighted Error Value: White=0.31/Black=0.36.  Loses game:     	---       	Black=1      Mistake:       	White=3     	Black=3      Inaccurate:     	White=1     	Black=4      OK:         	White=7     	Black=9      Best:        	---       	Black=2      Strong:       	White=1     	---} 1-0

[Event "Mitropa Cup Women 2024"]
[Site "Apolda"]
[Date "2024.02.20"]
[Round "6.19"]
[White "Navrotescu, Andreea"]
[Black "Klek, Hanna Marie"]
[Result "0-1"]
[ECO "E20"]
[WhiteElo "2222"]
[BlackElo "2284"]
[Annotator "TA"]
[PlyCount "98"]
[EventDate "2024.02.15"]
[EventType "team-tourn"]
[EventCountry "GER"]
[SourceTitle "playchess.com"]
[Source "ChessBase"]
[SourceQuality "1"]
[WhiteTeam "France"]
[BlackTeam "Germany"]
[WhiteTeamCountry "FRA"]
[BlackTeamCountry "GER"]
[TimeControl "40/5400+30:1800+30"]

{[%evp 10,98,9,6,26,-8,-20,-7,-6,0,-12,-14,-18,-20,-16,-17,-8,-1,6,-37,-38,-31,-29,-35,-31,-21,0,0,0,-35,-44,-112,-109,-184,-100,-136,-85,-119,-40,-36,-35,-44,-12,-28,-40,-59,-52,-170,-171,-2560,-210,-312,-310,-366,-380,-351,-225,-272,-194,-237,-196,-279,-167,-206,-199,-318,-318,-300,-323,-373,-298,-279,-181,-210,-214,-197,-194,-275,-275,-268,-264,-346,-335,-392,-328,-327,-329,-383,-399,-433,-291]} 1. d4 {[%emt 0:00:03]} Nf6 {[%emt 0:00:05]} 2. c4 {[%emt 0:00:05]} e6 {[%emt 0:00:06]} 3. Nc3 {[%emt 0:00:04]} Bb4 {[%emt 0:00:07]} 4. f3 {[%emt 0:00:04]} c5 {[%emt 0:00:37]} 5. d5 {[%emt 0:00:05]} d6 {[%emt 0:01:06]} 6. e4 {[%emt 0:00:32]} b5 {[%emt 0:00:52] E20: Nimzoindisch (Seltene Züge).} 7. Nge2 {[%emt 0:00:52]} bxc4 {[%emt 0:05:48]} 8. Nf4 {[%emt 0:00:32]} e5 {[%emt 0:00:16]} 9. Nfe2 {[%emt 0:00:07]} Nbd7 {[%emt 0:01:30]} 10. Ng3 {[%emt 0:00:51][%cal Og3f5]} Nb6 {[%emt 0:00:32]} 11. Be2 {[%emt 0:00:53]} Ng8 {[%emt 0:00:15]} 12. h4 {[%emt 0:01:02]} Ne7 {[%emt 0:03:59]} 13. h5 {[%emt 0:02:47] Gegen Ng6 gerichtet.} f5 {[%emt 0:06:33]} 14. f4 $146 {[%emt 0:20:44]} ({Predecessor:} 14. h6 g6 15. f4 O-O 16. O-O Bxc3 17. bxc3 fxe4 18. fxe5 Nexd5 19. Nxe4 Bf5 20. Bg5 {1-0 Arabidze,M (2433)-Garifullina,L (2372) EU-ch (Women) 23rd 2023 (7)}) 14... O-O {[%emt 0:07:02]} 15. O-O {[%emt 0:02:26]} Bxc3 {[%emt 0:08:56]} 16. bxc3 {[%emt 0:00:24]} fxe4 {[%emt 0:05:33]} 17. fxe5 {[%emt 0:18:23]} Rxf1+ {[%emt 0:04:06]} (17... Nexd5 {ist vielschichtiger.} 18. Rxf8+ Qxf8 19. Bxc4 Be6) 18. Bxf1 {[%emt 0:01:54]} (18. Qxf1 $5 Nexd5 19. Nxe4 $11) 18... Nexd5 {[%emt 0:01:04] Und ...Qe8 würde nun gewinnen.} (18... dxe5 {vereinfacht} 19. a4 Qxd5 20. Qxd5+ Nbxd5 21. Bxc4 Be6) 19. Nxe4 {[%emt 0:07:56]} (19. a4 $5 Be6 (19... Nxc3 20. Qe1 $11) (19... dxe5 $2 20. a5 $18) 20. Nxe4 $11) 19... dxe5 {[%emt 0:25:54]} 20. h6 {[%emt 0:14:09]} ({Vorzuziehen ist} 20. Qf3 $15) 20... Qh4 $17 {[%emt 0:02:23]} 21. Nf2 {[%emt 0:05:23]} (21. Nxc5 $17 Bg4 (21... gxh6 22. Qf3 $15) 22. Qd2) 21... gxh6 {[%emt 0:04:05]} (21... Bf5 $1 $19 22. a4 a5 (22... Nxc3 23. Qe1 $11) (22... gxh6 $2 23. a5 $18) 23. hxg7 Kxg7 (23... Nxc3 $2 24. Qf3 $18)) 22. Qe2 {[%emt 0:01:14] [#]} Nf6 {[%emt 0:06:15]} ({Günstiger ist} 22... Bd7 $1 23. Ba3 Re8 (23... Nxc3 24. Qxe5 Ncd5 25. Bxc5 $15) 24. Bxc5 Nxc3) 23. Qf3 {[%emt 0:08:39]} e4 {[%emt 0:00:38]} (23... Bg4 $17 24. Qe3 Be6) 24. Qe3 $15 {[%emt 0:00:47]} Be6 {[%emt 0:04:17]} 25. Qxc5 {[%emt 0:00:11]} Rf8 {[%emt 0:00:39]} 26. Qd6 {[%emt 0:03:49] Verhindert Nfd7} (26. Qe7 $5 Re8 (26... Qxf2+ $2 27. Kxf2 Nfd5+ 28. Qxf8+ Kxf8 29. Bxh6+ Ke7 30. Bg7 $18) 27. Qxa7 $11) 26... Re8 {[%emt 0:01:38] ...Nbd5 wäre nun fies.} 27. Be3 {[%emt 0:01:29][%cal Oe3d4]} Nfd5 {[%emt 0:01:24]} 28. Bd4 {[%emt 0:00:56]} (28. Re1 $15) 28... e3 $19 {[%emt 0:00:57]} 29. Re1 $2 {[%emt 0:05:47]} (29. Nh1 Bf5 30. Bxc4 Nxc4 31. Qxd5+ Be6 32. Qf3) 29... exf2+ $2 {[%emt 0:00:31]} (29... Qxf2+ 30. Kh2 Qh4+ (30... Qxe1 $2 31. Qe5 $19) 31. Kg1 Qxe1) 30. Bxf2 $19 {[%emt 0:00:04]} Qe7 {[%emt 0:01:25]} 31. Qg3+ {[%emt 0:02:25]} Qg5 {[%emt 0:00:32]} 32. Qd6 {[%emt 0:00:31]} Qg6 {[%emt 0:02:58]} 33. Bd4 {[%emt 0:00:18]} Bf7 {[%emt 0:01:02]} 34. Rxe8+ {[%emt 0:00:14]} Bxe8 {[%emt 0:00:01]} 35. Qe5 {[%emt 0:00:07]} (35. Qb8 $142) 35... Bd7 {[%emt 0:01:11]} (35... Bc6 $142 {Und jetzt ...Kf7 wäre schön.} 36. Qb8+ Kf7) 36. Be2 {[%emt 0:00:29] [#] Zielt auf Bh5 ab.} Qg5 $1 {[%emt 0:01:22]} 37. Qh8+ {[%emt 0:00:46]} (37. Qb8+ {ist wohl besser.} Nc8 (37... Kf7 38. Qxa7 Qc1+ 39. Kh2 $17) 38. Bxc4) 37... Kf7 $19 {[%emt 0:00:02]} 38. Qxh7+ {[%emt 0:00:32]} Ke6 {[%emt 0:01:07][%cal Od5c3]} 39. Bf3 {[%emt 0:01:18]} Kd6 {[%emt 0:01:11][%cal Od5c3] Droht ...Nxc3! und aus.} 40. Qh8 {[%emt 0:00:37]} Qc1+ {[%emt 0:01:11]} 41. Kh2 {[%emt 0:30:24]} Qf4+ {[%emt 0:02:31]} 42. Kg1 {[%emt 0:00:00][%cal Od4e5]} Nc8 {[%emt 0:18:47]} 43. Qg8 {[%emt 0:00:00]} (43. Be2 $142) 43... Qg5 $19 {[%emt 0:03:00]} 44. Qf8+ {[%emt 0:00:00]} Nde7 {[%emt 0:00:25]} 45. Bf2 {[%emt 0:00:00]} Kc7 {[%emt 0:00:58]} 46. Kh2 {[%emt 0:00:00]} Be6 {[%emt 0:02:47]} 47. Bg3+ {[%emt 0:00:00]} Kd7 {[%emt 0:00:18]} 48. Qh8 {[%emt 0:00:00]} Nf5 {[%emt 0:01:09] Gegen Qd4+ gerichtet.} 49. Bf2 {[%emt 0:00:00]} Qg7 {[%emt 0:01:42]} 0-1

[Event "Mitropa Cup Women 2024"]
[Site "Apolda"]
[Date "2024.02.20"]
[Round "6.20"]
[White "Schulze, Lara"]
[Black "Blanquet, Camille"]
[Result "1-0"]
[ECO "B07"]
[WhiteElo "2285"]
[BlackElo "2023"]
[Annotator "TA"]
[PlyCount "67"]
[EventDate "2024.02.15"]
[EventType "team-tourn"]
[EventCountry "GER"]
[SourceTitle "playchess.com"]
[Source "ChessBase"]
[SourceQuality "1"]
[WhiteTeam "Germany"]
[BlackTeam "France"]
[WhiteTeamCountry "GER"]
[BlackTeamCountry "FRA"]
[TimeControl "40/5400+30:1800+30"]

{[%evp 9,67,44,36,45,89,45,80,36,72,53,75,65,85,64,83,58,100,72,82,83,106,103,134,139,145,117,116,138,156,92,87,97,143,0,0,0,139,128,168,176,165,180,164,168,131,105,115,105,737,734,975,958,29988,29989,29989,1116,29988,5735,29998,29999]} 1. e4 {[%emt 0:00:02]} d6 {[%emt 0:00:07]} 2. d4 {[%emt 0:00:20]} Nf6 {[%emt 0:00:14]} 3. Nc3 {[%emt 0:00:07]} Nbd7 {[%emt 0:00:28]} 4. h3 {[%emt 0:04:44]} e5 {[%emt 0:04:34]} 5. g4 {[%emt 0:03:55]} exd4 {[%emt 0:05:01]} 6. Qxd4 {[%emt 0:00:34]} Nc5 {[%emt 0:02:04]} 7. Bg2 {[%emt 0:01:53]} Be7 {[%emt 0:04:38]} 8. Nge2 {[%emt 0:06:06] Weiß steht besser.} O-O {[%emt 0:03:33]} 9. Be3 {[%emt 0:04:34]} c6 {[%emt 0:04:28]} 10. a4 {[%emt 0:08:17]} Qc7 {[%emt 0:05:11]} 11. O-O {[%emt 0:02:28]} Re8 {[%emt 0:05:21]} 12. Ng3 {[%emt 0:03:51]} Bf8 {[%emt 0:02:52]} 13. Rad1 {[%emt 0:01:41]} b6 {[%emt 0:08:49]} 14. Qd2 {[%emt 0:05:48]} Ba6 {[%emt 0:04:16]} 15. Rfe1 {[%emt 0:00:24]} Rad8 {[%emt 0:02:06]} 16. Bg5 {[%emt 0:08:24]} Ncd7 {[%emt 0:00:53]} 17. Nf5 {[%emt 0:03:46][%cal Rf5d6]} h6 {[%emt 0:02:08]} 18. Bh4 {[%emt 0:01:45]} Re6 {[%emt 0:03:36]} 19. b4 {[%emt 0:11:22]} (19. Nd4 $142) 19... Bb7 $16 {[%emt 0:04:17]} 20. Ne2 {[%emt 0:10:20] Weiß steht deutlich aktiver.} Rde8 {[%emt 0:08:52]} (20... c5 $142) 21. Ned4 {[%emt 0:02:51]} ({Günstiger ist} 21. Bg3 $16) 21... Rxe4 $11 {[%emt 0:01:01]} 22. Bxe4 {[%emt 0:01:48]} Rxe4 {[%emt 0:01:37]} (22... Nxe4 $11 23. Qd3 c5) 23. f3 $16 {[%emt 0:02:43]} Rxe1+ {[%emt 0:02:25]} 24. Rxe1 {[%emt 0:00:05][%cal Bd1e1,Be1e4,Be4e8,Be8f8][%mdl 32] Bxf6 ist eine echte Drohung.} (24. Bxe1 c5 25. bxc5 (25. Nb5 Qc6 $17) 25... bxc5 $17) 24... c5 {[%emt 0:02:16]} 25. Nb5 $36 {[%emt 0:02:08][%csl LRa7,LRc7,LRd6][%mdl 2048] Weiss ist am Drücker.} Qc6 {[%emt 0:00:24]} 26. Nbxd6 {[%emt 0:01:54]} Ba8 {[%emt 0:00:09]} 27. Ne4 {[%emt 0:03:05]} (27. Bxf6 Qxf3 28. Re8 Nxf6 29. Ne7+ Kh7 30. Rxf8 Qg3+ 31. Kf1 Qxh3+ 32. Ke1 Qh1+ 33. Ke2 Qf3+ 34. Ke1 Qh1+ 35. Ke2 Qg2+ (35... Qf3+ 36. Ke1 $11) 36. Kd1 Qg1+ 37. Ke2 (37. Qe1 $2 Bf3+ 38. Kd2 Qd4+ 39. Kc1 cxb4 $19) 37... Qxg4+ 38. Ke1 Qg1+ 39. Ke2 Qg2+ (39... Qg4+ 40. Ke1 $11) 40. Kd1 Qh1+ (40... Qg1+ 41. Ke2 $11) 41. Ke2 (41. Qe1 $2 Bf3+ 42. Kd2 Qh2+ 43. Kc1 Qxd6 $19) 41... Qh2+ (41... Qf3+ 42. Ke1 $11) 42. Ke1 (42. Kd1 Qh1+ 43. Ke2 Qh2+ 44. Kd1 Qg1+ 45. Ke2 Qh2+ $11) 42... Qh1+ 43. Ke2 Qg2+ (43... Qf3+ 44. Ke1 $11) 44. Kd1 Qg1+ 45. Ke2 Qh2+ (45... Qg4+ 46. Kf1 $11) 46. Kd1 Qh1+ 47. Ke2 $11 (47. Qe1 $2 Bf3+ 48. Kd2 Qh2+ 49. Kc1 Qxd6 $19)) 27... Nxe4 {[%emt 0:00:38]} 28. Rxe4 {[%emt 0:02:02] [#] Zielt auf b5 ab.} Qxa4 {[%emt 0:07:21][%mdl 8192] Verliert die Partie.} (28... cxb4 $16 29. Re8 Qxf3) 29. Re8 $18 {[%emt 0:00:51]} Qa1+ {[%emt 0:02:17]} 30. Kf2 {[%emt 0:03:25]} Bxf3 {[%emt 0:02:13]} 31. Qxd7 {[%emt 0:01:44]} Kh7 {[%emt 0:02:17]} 32. Ng3 {[%emt 0:02:17]} (32. Qxf7 $142 Qh1 33. Qxf8 (33. Rxf8 Qg2+ 34. Ke3 Qe2+ 35. Kf4 Qe4+ 36. Kg3 Qe1+ 37. Kxf3 Qh1+ 38. Ke2 Qg2+ 39. Ke3 Qg1+ 40. Bf2 Qc1+ 41. Kf3 Qd1+ 42. Kg3 Qa1 43. Qg8+ Kg6 44. Nh4+ Kg5 45. Rf5#) 33... Qg2+ 34. Ke3 Qe2+ 35. Kf4 g5+ 36. Bxg5 Qh2+ 37. Kxf3) 32... cxb4 {[%emt 0:00:35]} 33. Qf5+ {[%emt 0:00:23]} (33. Rxf8 $142 Qe5 34. Qd3+ (34. Kxf3 Qc3+ 35. Qd3+ Qxd3+ 36. cxd3 b3 $18) 34... Be4 35. Nxe4 (35. Qxe4+ Qxe4 36. Nxe4 b3 37. cxb3 f6 38. Rf7 Kg8 39. Rxa7 Kf8) 35... f5 36. gxf5 (36. Rxf5 Qh2+ 37. Ke1 Kg8 38. Nf6+ gxf6 39. Qd5+ Kg7 40. Bxf6+ Kf8 41. Be5+ Ke8 42. Qe6+ Kd8 43. Rf8#) (36. Nf6+ Kg6 37. Kg2 gxf6 38. gxf5+ Kg7 39. Rc8 Kf7 40. Qd7+ Qe7 41. Qd5+ Qe6 42. Qxe6+ Kg7 43. Qg8#) 36... Qh2+ 37. Kf3 (37. Ke3 Qg1+ 38. Kf4 Qh2+ 39. Bg3 Qxg3+ 40. Nxg3 h5 41. f6+ g6 42. Qd7+ Kh6 43. Rh8#) 37... Qh1+ 38. Kf4) 33... Kg8 {[%emt 0:01:01]} 34. Rxf8+ {[%emt 0:00:19] Gewichteter Fehlerwert: Weiß=0.21 (präzise) /Schwarz=0.69.  Verlustzug:     	---       	Schwarz=1     Fehler:       	Weiß=2     	Schwarz=2     Ungenau:       	Weiß=2     	Schwarz=7     OK:         	Weiß=7     	Schwarz=5     Bester:       	Weiß=2     	Schwarz=3} 1-0

[Event "Mitropa Cup Women 2024"]
[Site "Apolda"]
[Date "2024.02.21"]
[Round "7.1"]
[White "Urh, Zala"]
[Black "Iglesias, Yosha"]
[Result "0-1"]
[ECO "B11"]
[WhiteElo "2290"]
[BlackElo "2260"]
[Annotator "TA"]
[PlyCount "78"]
[EventDate "2024.02.15"]
[EventType "team-tourn"]
[EventCountry "GER"]
[SourceTitle "playchess.com"]
[Source "ChessBase"]
[SourceQuality "1"]
[WhiteTeam "Slovenia"]
[BlackTeam "France"]
[WhiteTeamCountry "SLO"]
[BlackTeamCountry "FRA"]
[TimeControl "40/5400+30:1800+30"]

{[%evp 10,78,34,29,28,25,25,19,14,12,39,14,60,50,50,56,61,37,68,56,59,66,51,47,72,55,111,32,84,25,45,46,70,-83,-83,-127,-127,-129,-123,-266,-96,-112,-116,-123,-116,-111,-118,-139,-127,-125,-131,-119,-64,-3185,-3217,-5189,-1654,-1741,-1665,-1983,-1910,-2044,-1790,-5609,-5367,-5130,-2643,-29988,-29989,-29989,-29990]} 1. e4 {[%emt 0:00:07]} c6 {[%emt 0:00:05]} 2. Nf3 {[%emt 0:00:28]} d5 {[%emt 0:00:18]} 3. Nc3 {[%emt 0:00:15]} dxe4 {[%emt 0:00:25]} 4. Nxe4 {[%emt 0:00:06]} Nf6 {[%emt 0:00:08]} 5. Qe2 {[%emt 0:00:34]} Nxe4 {[%emt 0:00:24]} 6. Qxe4 {[%emt 0:00:05]} Nd7 {[%emt 0:00:16]} 7. Bc4 {[%emt 0:00:28]} Nf6 {[%emt 0:00:06] [#]} 8. Ne5 $1 {[%emt 0:00:18][%csl Ge5][%cal Rc4f7]} e6 {[%emt 0:00:25] The position is equal.} 9. Qe2 {[%emt 0:00:06]} b5 {[%emt 0:01:48]} 10. Bd3 {[%emt 0:00:13][%cal Oe2f3]} (10. Nxc6 Qc7 11. Bd3 (11. Bxb5 a6 $19) 11... a6 $15 (11... Qxc6 $2 12. Bxb5 $18)) 10... Bd6 {[%emt 0:02:11]} (10... Bb7 $11) 11. a4 $14 {[%emt 0:04:12]} Qc7 {[%emt 0:02:57] [#]} 12. Nxc6 {[%emt 0:00:21]} b4 {[%emt 0:00:33][%cal Oa7a6]} (12... Qxc6 $2 13. Bxb5 $18 (13. axb5 $2 Qxg2 14. Qf1 Qd5 $19) (13. axb5 $2 Qxg2 14. Qf1 Qd5 $19)) 13. Nd4 $1 {[%emt 0:00:14]} a6 {[%emt 0:00:12][%cal Oe8g8] Dodges Nb5} 14. Nf5 {[%emt 0:00:14]} Bb7 {[%emt 0:00:48]} 15. Nxd6+ {[%emt 0:00:17]} (15. Nxg7+ Kf8 16. Nh5 Nxh5 17. Qxh5 Rg8 18. Qxh7 (18. Bxh7 Rxg2 19. Qh3 Bf4 $19) 18... Rxg2 $17) 15... Qxd6 {[%emt 0:00:07]} 16. O-O {[%emt 0:00:37]} h5 {[%emt 0:00:15][%cal Ob4b3]} 17. Qe3 {[%emt 0:00:23]} h4 {[%emt 0:10:57]} (17... Rd8 $14) 18. f3 {[%emt 0:16:28]} (18. h3 $16) 18... Nd5 {[%emt 0:05:31]} ({Black should play} 18... Rh5 $1 $14) 19. Qf2 {[%emt 0:01:45]} (19. Qd4 $1 $16) 19... Rc8 {[%emt 0:07:31]} 20. b3 {[%emt 0:17:48]} Rh5 {[%emt 0:07:37]} 21. Bb2 $2 {[%emt 0:21:08]} (21. Kh1 $14 {stays ahead.}) 21... Nf4 $17 {[%emt 0:04:29] Hoping for ...Rg5.} 22. Be4 {[%emt 0:03:01] [#]} Rg5 $1 {[%emt 0:09:23]} 23. Kh1 {[%emt 0:01:12]} Rxg2 {[%emt 0:01:39]} 24. Qxh4 {[%emt 0:01:23] [#]} (24. Qd4 $17 Qxd4 (24... Rxd2 $2 25. Qxd6 Rxd6 26. Bxb7 $18) 25. Bxd4 Bxe4 (25... Rxd2 26. Be3 $16) 26. fxe4) 24... g5 $2 {[%emt 0:07:41]} (24... Rxd2 $1 $19 {White must now prevent ...Bxe4.} 25. Bc1 (25. Bxb7 $2 Rcxc2 $19) 25... Bxe4 26. fxe4 Ng6) 25. Qh8+ {[%emt 0:02:25]} Kd7 {[%emt 0:00:16]} 26. Qh7 {[%emt 0:00:05]} Bxe4 {[%emt 0:02:15]} 27. fxe4 {[%emt 0:02:11]} Rxc2 {[%emt 0:09:33]} (27... Qxd2 $2 28. Rad1 (28. Qxf7+ Kc6 29. Qh7 Rf2 30. Rg1 Qe2) 28... Rxc2 29. Bc1 $18 (29. Rxd2+ Rgxd2 30. Bc1 Rxh2+ 31. Qxh2 Rxh2+ 32. Kxh2 Ne2 $18) (29. Qxf7+ Kc6 $18) (29. Rxd2+ Rgxd2 30. Bc1 Rf2 $18) (29. Qxf7+ Kc6 $18)) 28. Rac1 {[%emt 0:14:28]} Rgxd2 {[%emt 0:08:02] Black has more active pieces.} (28... Rxb2 $2 {is the wrong capture.} 29. Qxf7+ Kd8 (29... Qe7 $2 30. Rc7+ Kxc7 31. Qxe7+ Kb8 32. Qxb4+ Ka8 33. Qf8+ Kb7 34. Qg7+ Kb8 35. Qxb2 $18) 30. Qg8+ Ke7 31. Qg7+ Kd8 32. Qxb2 $18) 29. Rxc2 {[%emt 0:00:21]} Rxc2 $40 {[%emt 0:00:41][%mdl 128] Black goes for the king.} 30. Qxf7+ {[%emt 0:00:16]} Kc6 {[%emt 0:02:00][%cal Oc2h2] Chess con chili.} 31. Qe8+ $2 {[%emt 0:13:26][%mdl 8192] [#]} (31. Qa7 $15 Qd3 (31... Rxb2 32. Rc1+) 32. Qa8+ Kd7 33. Qa7+ Rc7 34. Qd4+ Kc8 35. Qxd3 (35. Rxf4 $2 Qb1+ 36. Qg1 Qxg1+ 37. Kxg1 gxf4 $19) 35... Nxd3 36. Rf8+ Kb7 37. Bd4) 31... Kb7 $1 $19 {[%emt 0:00:22][%cal Oc2h2]} 32. Qf7+ {[%emt 0:00:03]} Kb6 {[%emt 0:01:38]} (32... Rc7 $142 33. Qxc7+ Qxc7) 33. a5+ {[%emt 0:00:09]} Kxa5 {[%emt 0:00:29]} 34. Qa7 {[%emt 0:01:38]} Rxb2 {[%emt 0:04:59]} 35. Ra1+ {[%emt 0:00:12]} Kb5 {[%emt 0:00:10][%cal Ob2h2] ( -> ...Rxh2+!)} 36. Qb7+ {[%emt 0:00:05]} Qb6 {[%emt 0:00:16]} 37. Qd7+ {[%emt 0:00:12]} Qc6 {[%emt 0:00:11]} 38. Qd4 {[%emt 0:01:31] [#]} Rxh2+ $3 {[%emt 0:01:27]} 39. Kg1 {[%emt 0:00:41]} Ne2+ {[%emt 0:00:17] Weighted Error Value: White=0.69/Black=0.36.  Loses game:     	White=1     	---        Missed win:     	---       	Black=1      Mistake:       	White=4     	Black=3      Inaccurate:     	White=2     	---        OK:         	White=5     	Black=9      Best:        	White=4     	Black=4      Strong:       	White=1     	Black=2      Brilliant:      	White=1     	---} 0-1

[Event "Mitropa Cup Women 2024"]
[Site "Apolda"]
[Date "2024.02.21"]
[Round "7.2"]
[White "Schippke, Manon"]
[Black "Shpanko, Nadiia"]
[Result "1-0"]
[ECO "B12"]
[WhiteElo "2162"]
[BlackElo "2179"]
[Annotator "RC"]
[PlyCount "79"]
[EventDate "2024.02.15"]
[EventType "team-tourn"]
[EventCountry "GER"]
[SourceTitle "playchess.com"]
[Source "ChessBase"]
[SourceQuality "1"]
[WhiteTeam "France"]
[BlackTeam "Slovenia"]
[WhiteTeamCountry "FRA"]
[BlackTeamCountry "SLO"]
[TimeControl "40/5400+30:1800+30"]

1. e4 {[%emt 0:00:09]} c6 {[%emt 0:00:08]} 2. d4 {[%emt 0:00:06]} d5 {[%emt 0:00:07]} 3. e5 {[%emt 0:00:04]} c5 {[%emt 0:00:07]} 4. Nf3 {[%emt 0:00:04]} Nc6 {[%emt 0:00:17]} 5. c4 {[%emt 0:23:14]} cxd4 {[%emt 0:22:49]} 6. Nxd4 {[%emt 1:09:53]} Qa5+ {[%emt 0:04:13]} 7. Bd2 {[%emt 0:00:00]} Qb6 {[%emt 0:00:45]} 8. Nxc6 {[%emt 0:00:00]} Qxc6 {[%emt 0:02:51]} 9. cxd5 {[%emt 0:00:00]} Qxd5 {[%emt 0:00:06]} 10. Qe2 {[%emt 0:00:00]} a6 {[%emt 0:14:49]} 11. Nc3 {[%emt 0:00:00]} Qe6 {[%emt 0:00:04]} 12. Qe4 {[%emt 0:00:00]} f5 {[%emt 0:04:09]} 13. Qd4 {[%emt 0:00:00]} Qd7 {[%emt 0:04:29]} 14. Qf4 {[%emt 0:00:00]} g6 {[%emt 0:01:56]} 15. Rd1 {[%emt 0:00:00]} Bh6 {[%emt 0:02:36]} 16. Qh4 {[%emt 0:00:00]} Bxd2+ {[%emt 0:01:02]} 17. Rxd2 {[%emt 0:00:00]} Qc7 {[%emt 0:07:07]} 18. Bc4 {[%emt 0:00:00]} b5 {[%emt 0:07:17]} 19. Bb3 {[%emt 0:00:00]} Bb7 {[%emt 0:02:03]} 20. O-O {[%emt 0:00:00]} Rd8 {[%emt 0:02:58]} 21. Rxd8+ {[%emt 0:00:00]} Qxd8 {[%emt 0:00:16]} 22. Bxg8 {[%emt 0:00:00]} Rxg8 {[%emt 0:00:08]} 23. Qxh7 {[%emt 0:00:00]} Kf8 {[%emt 0:00:16]} 24. Rd1 {[%emt 0:00:00]} Qc7 {[%emt 0:00:37]} 25. e6 {[%emt 0:00:00]} Rg7 {[%emt 0:00:10]} 26. Qh8+ {[%emt 0:00:00]} Rg8 {[%emt 0:00:06]} 27. Qh6+ {[%emt 0:00:00]} Rg7 {[%emt 0:01:10]} 28. Rd7 {[%emt 0:00:00]} Qc8 {[%emt 0:01:44]} 29. Rxe7 {[%emt 0:01:10]} Kxe7 {[%emt 0:00:23]} 30. Qxg7+ {[%emt 0:00:03]} Kxe6 {[%emt 0:00:27]} 31. Qxg6+ {[%emt 0:00:02]} Ke7 {[%emt 0:00:13]} 32. a3 {[%emt 0:01:20]} Bc6 {[%emt 0:03:19]} 33. h4 {[%emt 0:00:50]} a5 {[%emt 0:00:11]} 34. Qg7+ {[%emt 0:00:18]} Ke6 {[%emt 0:00:35]} 35. h5 {[%emt 0:01:00]} b4 {[%emt 0:00:14]} 36. axb4 {[%emt 0:00:13]} axb4 {[%emt 0:00:04]} 37. Ne2 {[%emt 0:00:08]} Qd7 {[%emt 0:07:00]} 38. Nf4+ {[%emt 0:00:49]} Kd6 {[%emt 0:00:10]} 39. Qxd7+ {[%emt 0:00:19]} Bxd7 {[%emt 0:00:12]} 40. h6 {[%emt 0:10:48]} 1-0